bitfinex-derivatives/quotes_BTCF0:USTF0_20241210
["timestamp","ask_amount","ask_price","bid_price","bid_amount"]
[1733844828514,0.3608,97024.0,97003.0,0.3608]
[1733844828715,0.3608,97007.0,96997.0,0.051524]
[1733844829014,0.051508,97029.0,96997.0,0.051524]
[1733844829015,0.3608,97014.0,96998.0,0.02082702]
[1733844829332,0.3608,97014.0,97013.0,0.00012]
[1733844830712,0.3608,97024.0,97013.0,0.00012]
[1733844830713,0.12257526,97022.0,97013.0,0.00012]
[1733844831313,0.3608,97036.0,97017.0,0.3608]
[1733844831511,0.004,97039.0,97036.0,0.051503]
[1733844831714,0.3608,97037.0,97035.0,0.00012]
[1733844832017,0.36086,97036.0,97026.0,0.051509]
[1733844832410,6e-05,97027.0,97026.0,0.051509]
[1733844833015,6e-05,97027.0,97026.0,0.412309]
[1733844833411,0.001,97036.0,97026.0,0.412309]
[1733844833612,0.001,97036.0,97035.0,0.412304]
[1733844835128,9e-05,97047.0,97035.0,0.3608]
[1733844835328,9e-05,97047.0,97046.0,0.3608]
[1733844835622,9e-05,97047.0,97046.0,0.36092]
[1733844836625,0.00309,97047.0,97046.0,0.36092]
[1733844837718,0.00309,97047.0,97046.0,0.00012]
[1733844839214,0.00309,97047.0,97046.0,0.051618]
[1733844841327,0.36389,97047.0,97046.0,0.00012]
[1733844841823,0.051503,97038.0,97024.0,0.3608]
[1733844842015,0.64909,97047.0,97024.0,0.3608]
[1733844842016,0.051501,97042.0,97033.0,0.051505]
[1733844842216,0.64961001,97047.0,97024.0,0.3608]
[1733844842426,0.64961001,97047.0,97041.0,0.00012]
[1733844842427,0.28829,97047.0,97041.0,0.00012]
[1733844842631,0.0515,97043.0,97041.0,0.00012]
[1733844843125,0.0515,97043.0,97017.0,0.3608]
[1733844843126,0.051509,97026.0,97024.0,0.001]
[1733844843521,6e-05,97025.0,97024.0,0.001]
[1733844844019,0.051514,97017.0,96997.0,0.02027542]
[1733844844221,0.3608,97017.0,96997.0,0.051524]
[1733844844416,0.051515,97014.0,96998.0,0.051524]
[1733844844724,0.05152,97005.0,96990.0,0.00011689]
[1733844844915,0.41232,97005.0,96990.0,0.00011689]
[1733844845129,0.41238,97005.0,96990.0,0.00011689]
[1733844845321,0.41238,97005.0,96991.0,0.051527]
[1733844845518,0.051522,97001.0,96992.0,0.051527]
[1733844845722,0.3608,96993.0,96992.0,0.051527]
[1733844845924,0.36086,96993.0,96992.0,0.051527]
[1733844846325,6e-05,96993.0,96992.0,0.051527]
[1733844846622,6e-05,96993.0,96992.0,0.06130766]
[1733844847231,6e-05,96993.0,96992.0,0.06530766]
[1733844848126,6e-05,96993.0,96992.0,0.01578066]
[1733844848328,6e-05,96993.0,96992.0,0.006]
[1733844848927,6e-05,96993.0,96992.0,0.004]
[1733844849120,6e-05,96993.0,96992.0,0.006]
[1733844851931,6e-05,96993.0,96992.0,0.3668]
[1733844852229,0.14721489,97005.0,97004.0,0.051521]
[1733844852431,0.00013114,97013.0,97008.0,0.051518]
[1733844852637,0.00013114,97013.0,97008.0,0.412318]
[1733844852930,0.3608,97036.0,97020.0,0.051512]
[1733844853139,0.3608,97036.0,97020.0,0.412312]
[1733844853432,0.3608,97036.0,97008.0,0.3608]
[1733844853833,0.15719593,97021.0,97019.0,0.051512]
[1733844854033,0.33490698,97053.0,97028.0,0.051508]
[1733844854334,0.12276879,97052.0,97028.0,0.36092]
[1733844854636,0.12276879,97050.0,97028.0,0.3608]
[1733844854833,0.051504,97035.0,97019.0,0.051512]
[1733844855134,0.3608,97038.0,97027.0,0.051508]
[1733844855435,0.3608,97046.0,97038.0,0.051502]
[1733844855635,0.3608,97046.0,97037.0,0.3608]
[1733844855835,0.3608,97046.0,97045.0,0.00012]
[1733844858227,0.3638,97046.0,97045.0,0.00012]
[1733844858929,0.3638,97046.0,97045.0,0.00112]
[1733844859125,0.3668,97046.0,97045.0,0.00112]
[1733844859641,0.006,97046.0,97045.0,0.00112]
[1733844859933,0.007,97046.0,97045.0,0.00112]
[1733844860138,0.007,97046.0,97045.0,0.36192]
[1733844861042,0.12276879,97077.0,97074.0,0.051483]
[1733844861537,0.12276879,97077.0,97075.0,0.00012]
[1733844861933,0.00113825,97076.0,97075.0,0.00012]
[1733844862434,0.1,97100.0,97075.0,0.00012]
[1733844862636,0.1,97100.0,97095.0,0.3608]
[1733844862833,0.1,97100.0,97099.0,0.00012]
[1733844863541,0.3608,97122.0,97099.0,0.00012]
[1733844863841,0.3608,97135.0,97111.0,0.36092]
[1733844864036,0.3608,97123.0,97099.0,0.02070023]
[1733844864242,0.3608,97123.0,97108.0,0.051465]
[1733844864629,0.3608,97123.0,97107.0,0.051466]
[1733844864630,0.3608,97114.0,97107.0,0.051466]
[1733844864835,0.3608,97114.0,97108.0,0.051465]
[1733844865139,0.3608,97114.0,97109.0,0.051465]
[1733844865534,0.00011285,97122.0,97120.0,0.051459]
[1733844866544,0.052434,97149.0,97121.0,0.00012]
[1733844866545,0.00099,97149.0,97121.0,0.00012]
[1733844866733,0.00099,97149.0,97147.0,0.051445]
[1733844866936,1e-06,97149.0,97148.0,0.35708628]
[1733844867240,0.3608,97183.0,97148.0,0.35708628]
[1733844867440,0.3608,97183.0,97171.0,0.3608]
[1733844867637,0.00013285,97182.0,97177.0,0.051429]
[1733844868043,0.00013285,97182.0,97172.0,0.051431]
[1733844868342,0.00013285,97182.0,97180.0,0.051427]
[1733844869942,0.00013285,97182.0,97180.0,0.0508136]
[1733844869943,0.00313285,97182.0,97180.0,0.0508136]
[1733844870443,0.00313285,97182.0,97174.0,0.02100062]
[1733844870750,0.2,97200.0,97191.0,0.051421]
[1733844871045,0.2,97200.0,97199.0,0.051417]
[1733844871644,0.20009679,97200.0,97199.0,0.051417]
[1733844872251,0.18217377,97200.0,97199.0,0.051417]
[1733844872449,0.12770262,97200.0,97199.0,0.051417]
[1733844873153,0.12770262,97200.0,97199.0,0.05231886]
[1733844873453,0.48850262,97200.0,97199.0,0.001]
[1733844873743,0.48850262,97200.0,97199.0,0.00093]
[1733844873953,0.48850262,97200.0,97188.0,0.00998835]
[1733844874139,0.70298423,97200.0,97181.0,0.3608]
[1733844874338,0.3608,97188.0,97181.0,0.3608]
[1733844874543,0.3608,97188.0,97174.0,0.02100062]
[1733844874544,0.3608,97187.0,97174.0,0.02100062]
[1733844874844,6e-05,97175.0,97170.0,0.3608]
[1733844875049,6e-05,97175.0,97165.0,0.051435]
[1733844875342,0.3608,97176.0,97169.0,0.051433]
[1733844875847,0.3608,97176.0,97175.0,0.00012]
[1733844876437,0.3608,97188.0,97175.0,0.00012]
[1733844876647,0.6608,97188.0,97175.0,0.00012]
[1733844876845,0.3608,97176.0,97161.0,0.01008804]
[1733844877042,0.051431,97173.0,97161.0,0.01008804]
[1733844877242,0.3608,97166.0,97161.0,0.01008804]
[1733844877441,0.3608,97166.0,97160.0,0.00154365]
[1733844877845,0.3608,97166.0,97160.0,0.05298165]
[1733844878355,0.051435,97165.0,97160.0,0.00154365]
[1733844879039,0.051441,97155.0,97141.0,0.01007915]
[1733844879240,0.3608,97157.0,97142.0,0.3608]
[1733844879446,0.3608,97157.0,97151.0,0.051442]
[1733844879651,0.3608,97157.0,97156.0,0.00012]
[1733844880652,8.15e-05,97164.0,97156.0,0.00012]
[1733844880954,8.15e-05,97164.0,97163.0,0.051436]
[1733844881544,8.15e-05,97164.0,97163.0,0.051556]
[1733844883252,0.3608,97177.0,97176.0,0.051429]
[1733844883641,0.17902283,97200.0,97185.0,0.051425]
[1733844883840,0.12760583,97200.0,97190.0,0.051422]
[1733844884053,0.12760583,97200.0,97197.0,0.00012]
[1733844884247,0.64673024,97198.0,97197.0,0.00012]
[1733844884954,0.36093024,97198.0,97197.0,0.00012]
[1733844885149,0.66093024,97198.0,97177.0,0.01007636]
[1733844885347,0.412225,97184.0,97163.0,0.02015248]
[1733844885553,0.3608,97175.0,97169.0,0.051433]
[1733844886458,0.051427,97181.0,97169.0,0.051433]
[1733844886651,0.3608,97175.0,97163.0,0.02015248]
[1733844886859,0.051431,97173.0,97163.0,0.02015248]
[1733844887049,6e-05,97164.0,97163.0,0.07158848]
[1733844888455,0.3608,97174.0,97173.0,0.051431]
[1733844888755,0.3608,97174.0,97163.0,0.02015248]
[1733844889350,6e-05,97164.0,97163.0,0.07158848]
[1733844889953,6e-05,97164.0,97163.0,0.02015248]
[1733844890256,6e-05,97164.0,97163.0,0.02215248]
[1733844890450,6e-05,97164.0,97163.0,0.002]
[1733844891049,6e-05,97164.0,97163.0,0.007]
[1733844891254,0.00018091,97164.0,97163.0,0.007]
[1733844891458,0.051443,97151.0,97150.0,0.00154398]
[1733844891648,0.05145,97137.0,97136.0,0.000111]
[1733844891852,0.05145,97137.0,97121.0,0.051458]
[1733844891853,0.3608,97137.0,97121.0,0.051458]
[1733844892055,0.3608,97123.0,97121.0,0.06140425]
[1733844892249,0.3608,97123.0,97107.0,0.00154466]
[1733844892250,6e-05,97122.0,97107.0,0.00154466]
[1733844892450,6e-05,97122.0,97110.0,0.21448161]
[1733844892650,0.412258,97123.0,97110.0,0.21448161]
[1733844892651,0.36132001,97123.0,97122.0,0.051458]
[1733844892854,0.36089375,97123.0,97122.0,0.051458]
[1733844893059,0.36089375,97123.0,97122.0,0.051578]
[1733844893757,9.375e-05,97123.0,97122.0,0.00012]
[1733844894160,9.375e-05,97123.0,97122.0,0.00112]
[1733844894757,0.30009375,97123.0,97122.0,0.00112]
[1733844894961,0.051465,97108.0,97107.0,0.00154466]
[1733844895152,0.7216,97108.0,97089.0,0.02013677]
[1733844895460,0.051467,97105.0,97091.0,0.051474]
[1733844895853,0.72212001,97108.0,97089.0,0.01013025]
[1733844896154,0.051467,97105.0,97089.0,0.06160525]
[1733844896557,0.051467,97105.0,97070.0,0.7066]
[1733844896558,0.05147,97100.0,97070.0,0.7066]
[1733844896758,0.3608,97095.0,97071.0,0.051485]
[1733844896957,0.3608,97095.0,97093.0,0.051473]
[1733844897361,0.3608,97096.0,97093.0,0.051473]
[1733844897665,0.3608,97096.0,97085.0,0.051477]
[1733844897857,0.3608,97096.0,97089.0,0.051475]
[1733844898462,0.051474,97092.0,97081.0,0.05148]
[1733844898654,0.3608,97088.0,97087.0,0.051477]
[1733844899365,0.3608,97096.0,97087.0,0.051477]
[1733844899565,0.3608,97096.0,97088.0,0.051476]
[1733844899757,0.3608,97096.0,97084.0,0.02023356]
[1733844899758,0.773072,97096.0,97095.0,0.00012]
[1733844900755,1.073072,97096.0,97095.0,0.00012]
[1733844900961,1.03144292,97096.0,97071.0,0.000101]
[1733844901163,0.3608,97085.0,97074.0,0.051483]
[1733844901463,0.3608,97085.0,97071.0,0.01001074]
[1733844901654,0.3608,97085.0,97071.0,0.000101]
[1733844901655,0.051484,97073.0,97071.0,0.000101]
[1733844901851,0.3608,97072.0,97071.0,0.000101]
[1733844902055,0.051485,97071.0,97031.0,0.051506]
[1733844902357,0.6608,97072.0,97020.0,0.3608]
[1733844902358,0.3608,97035.0,97020.0,0.3608]
[1733844902565,0.3608,97035.0,97028.0,0.051507]
[1733844902761,0.3608,97035.0,97028.0,0.02062469]
[1733844902958,0.00010456,97034.0,97020.0,0.3704487]
[1733844903267,0.00010456,97034.0,97028.0,0.051508]
[1733844904064,0.00010456,97034.0,97020.0,0.0096487]
[1733844904260,0.00010456,97034.0,97012.0,0.3608]
[1733844904261,0.3608,97024.0,97012.0,0.3608]
[1733844904461,0.00010456,97034.0,97028.0,0.001]
[1733844904857,0.00010456,97034.0,97033.0,0.00012]
[1733844905062,0.051507,97030.0,97028.0,0.001]
[1733844905260,0.051512,97021.0,97012.0,0.3608]
[1733844905461,0.36090456,97034.0,97012.0,0.3608]
[1733844905462,0.051513,97019.0,97012.0,0.3608]
[1733844905658,0.051513,97018.0,97012.0,0.3648]
[1733844905960,0.3608,97022.0,97012.0,0.004]
[1733844906159,0.3608,97013.0,97012.0,0.004]
[1733844907259,0.3608,97013.0,97010.0,0.00011345]
[1733844907458,0.62679261,97022.0,97010.0,0.00011345]
[1733844907658,0.3608,97022.0,97020.0,0.051512]
[1733844907859,0.3608,97022.0,97011.0,0.051517]
[1733844908060,0.3608,97022.0,97010.0,0.01005511]
[1733844908264,6e-05,97029.0,97023.0,0.05151]
[1733844908457,6e-05,97029.0,97014.0,0.051515]
[1733844908458,0.051509,97027.0,97014.0,0.051515]
[1733844908660,0.051509,97027.0,97010.0,0.01005511]
[1733844908963,0.004,97022.0,97020.0,0.051512]
[1733844909570,0.004,97022.0,97021.0,0.3608]
[1733844909961,0.004,97022.0,97020.0,0.051512]
[1733844910158,6e-05,97029.0,97022.0,0.051511]
[1733844910368,6e-05,97029.0,97021.0,0.3608]
[1733844910569,6e-05,97029.0,97027.0,0.051508]
[1733844911879,0.36086,97029.0,97022.0,0.001]
[1733844912070,0.05151,97024.0,97022.0,0.001]
[1733844912264,6e-05,97023.0,97022.0,0.001]
[1733844912566,6e-05,97023.0,97010.0,0.00011345]
[1733844912773,0.3608,97013.0,97010.0,0.00011345]
[1733844912982,0.051577,97011.0,97010.0,0.00011345]
[1733844915065,0.051577,97011.0,97010.0,0.00111345]
[1733844915264,0.351577,97011.0,97010.0,0.00111345]
[1733844915465,0.05167339,97011.0,97010.0,0.00111345]
[1733844915677,0.00015639,97011.0,97010.0,0.00111345]
[1733844917269,0.36095639,97011.0,97010.0,0.00111345]
[1733844918188,0.00015639,97011.0,97010.0,0.00111345]
[1733844921578,6e-05,97029.0,97028.0,0.051508]
[1733844921883,0.3608,97058.0,97031.0,0.051506]
[1733844922176,0.3608,97058.0,97028.0,0.36092]
[1733844922177,0.3608,97049.0,97028.0,0.00012]
[1733844922371,0.3608,97033.0,97028.0,0.01021371]
[1733844922569,0.051507,97029.0,97028.0,0.00012]
[1733844922771,0.051507,97029.0,97010.0,0.28791345]
[1733844922977,0.05151,97025.0,97016.0,0.051514]
[1733844923281,0.051511,97022.0,97010.0,0.34940043]
[1733844923476,0.3608,97016.0,97010.0,0.29788343]
[1733844923679,6e-05,97029.0,97011.0,0.051517]
[1733844923875,6e-05,97029.0,97010.0,0.29688343]
[1733844924181,6e-05,97029.0,97028.0,0.009]
[1733844925171,6e-05,97029.0,97027.0,0.413428]
[1733844925480,6e-05,97028.0,97027.0,0.412308]
[1733844926174,0.00011968,97032.0,97031.0,0.051506]
[1733844926573,0.00011968,97032.0,97031.0,0.051626]
[1733844927381,0.00011968,97032.0,97031.0,0.00012]
[1733844927872,0.051509,97027.0,97010.0,0.00011345]
[1733844928077,0.30011968,97032.0,97010.0,0.00011345]
[1733844928078,0.412317,97011.0,97010.0,0.00011345]
[1733844928281,0.36086,97011.0,97010.0,0.00011345]
[1733844928475,0.72166,97011.0,97010.0,0.00011345]
[1733844928679,0.051522,97001.0,96983.0,0.30446089]
[1733844928977,0.051552,96945.0,96943.0,0.42737683]
[1733844929285,0.3608,96967.0,96938.0,0.00112]
[1733844929286,0.72166,96944.0,96938.0,0.00112]
[1733844929580,6e-05,96939.0,96936.0,0.3586554]
[1733844929784,0.15357857,96938.0,96933.0,0.48713743]
[1733844929983,6e-05,96937.0,96936.0,0.051557]
[1733844930378,6e-05,96937.0,96933.0,0.48825743]
[1733844930379,0.051558,96934.0,96933.0,0.48825743]
[1733844930581,0.412418,96934.0,96933.0,0.48825743]
[1733844930884,0.46257087,96934.0,96933.0,0.48713743]
[1733844931082,0.36086,96934.0,96933.0,0.48713743]
[1733844931282,0.36086,96934.0,96933.0,0.53869543]
[1733844931785,0.04052399,96938.0,96937.0,0.051556]
[1733844932086,0.3608,96969.0,96963.0,0.051542]
[1733844932087,0.12258117,96964.0,96963.0,0.051542]
[1733844932275,0.3608,96993.0,96962.0,0.3608]
[1733844932590,0.3608,96993.0,96992.0,0.00012]
[1733844932784,0.3608,97003.0,96992.0,0.00012]
[1733844933088,8.779e-05,97002.0,96992.0,0.051527]
[1733844933279,8.779e-05,97002.0,96989.0,0.3608]
[1733844933597,8.779e-05,97002.0,96991.0,0.051527]
[1733844933978,8.779e-05,97002.0,97001.0,0.3608]
[1733844934186,0.54459541,97033.0,97001.0,0.6608]
[1733844934187,0.18379541,97033.0,97001.0,0.6608]
[1733844934405,0.60474058,97061.0,97001.0,0.6608]
[1733844934406,0.18377643,97052.0,97032.0,0.3608]
[1733844934583,0.18377643,97052.0,97049.0,0.3608]
[1733844934979,0.051491,97060.0,97049.0,0.3608]
[1733844935183,0.3608,97052.0,97004.0,0.33794356]
[1733844935487,0.00010446,97059.0,97000.0,0.3608]
[1733844935488,6e-05,97005.0,97000.0,0.3608]
[1733844935689,6e-05,97005.0,97004.0,0.051521]
[1733844935892,0.051515,97015.0,97001.0,0.009]
[1733844936186,0.3608,97017.0,97001.0,0.009]
[1733844936387,0.051521,97003.0,97001.0,0.009]
[1733844936590,0.051521,97004.0,97001.0,0.009]
[1733844936979,0.051521,97004.0,97003.0,0.00012]
[1733844937698,0.3608,97008.0,97004.0,0.009]
[1733844937986,0.3608,97008.0,97007.0,0.00012]
[1733844939186,0.001,97008.0,97007.0,0.00012]
[1733844940193,0.003,97008.0,97007.0,0.00012]
[1733844940786,0.003,97008.0,97007.0,0.412439]
[1733844940981,0.003,97008.0,97007.0,0.051639]
[1733844941295,0.002,97008.0,97007.0,0.00012]
[1733844942287,0.002,97008.0,97007.0,0.00312]
[1733844942983,0.00010821,97016.0,97007.0,0.00312]
[1733844943195,0.002,97008.0,97007.0,0.00312]
[1733844943399,0.002,97008.0,97007.0,0.003]
[1733844944392,0.414318,97008.0,97007.0,0.003]
[1733844944593,0.051528,96990.0,96971.0,0.051538]
[1733844944791,0.3608,96980.0,96964.0,0.05308794]
[1733844945091,6e-05,96977.0,96964.0,0.00154694]
[1733844945297,6e-05,96977.0,96964.0,0.05308794]
[1733844945595,6e-05,96977.0,96964.0,0.00154694]
[1733844945784,6e-05,96977.0,96965.0,0.051541]
[1733844945987,6e-05,96977.0,96951.0,0.2866]
[1733844945988,6e-05,96977.0,96961.0,0.3608]
[1733844946494,6e-05,96977.0,96964.0,0.02086579]
[1733844946985,6e-05,96977.0,96976.0,0.00312207]
[1733844947988,6e-05,96977.0,96976.0,0.00512207]
[1733844948191,0.00013318,96977.0,96976.0,0.00512207]
[1733844949599,0.00013318,96977.0,96960.0,0.051544]
[1733844949797,0.3608,96962.0,96960.0,0.051544]
[1733844949996,6e-05,96961.0,96953.0,0.00997992]
[1733844950197,0.051547,96954.0,96943.0,0.02024226]
[1733844950504,0.051547,96954.0,96952.0,0.051548]
[1733844950898,0.412343,96962.0,96943.0,0.02024226]
[1733844951093,0.3608,96962.0,96943.0,0.02024226]
[1733844951300,0.051545,96958.0,96950.0,0.051549]
[1733844951494,0.051545,96958.0,96944.0,0.3608]
[1733844951495,0.3608,96962.0,96944.0,0.3608]
[1733844951798,0.051548,96953.0,96946.0,0.051551]
[1733844952399,0.3608,96962.0,96944.0,0.3608]
[1733844952795,0.3608,96962.0,96961.0,0.00012]
[1733844953298,7.318e-05,96977.0,96976.0,0.051535]
[1733844953495,7.318e-05,96977.0,96976.0,0.412335]
[1733844953695,7.318e-05,96977.0,96976.0,0.412455]
[1733844954097,0.051511,97023.0,96976.0,0.712455]
[1733844954408,0.1836817,97034.0,97023.0,0.05151]
[1733844954609,0.051506,97032.0,97022.0,0.00012]
[1733844954804,0.051503,97037.0,97033.0,0.00012]
[1733844955106,0.051503,97037.0,97036.0,0.00012]
[1733844955302,0.05158928,97037.0,97036.0,0.00012]
[1733844955904,8.628e-05,97037.0,97036.0,0.00012]
[1733844956403,8.628e-05,97037.0,97036.0,0.72172]
[1733844956404,0.00608628,97037.0,97036.0,0.72172]
[1733844956797,0.3608,97062.0,97036.0,0.72172]
[1733844957107,0.3608,97062.0,97061.0,0.00012]
[1733844957797,0.36089956,97062.0,97061.0,0.00012]
[1733844959006,9.956e-05,97062.0,97061.0,0.00012]
[1733844959209,0.00409956,97062.0,97061.0,0.00012]
[1733844959999,0.00509956,97062.0,97061.0,0.00012]
[1733844960612,0.00509956,97062.0,97061.0,0.05161]
[1733844961005,0.3608,97084.0,97071.0,0.051485]
[1733844961207,0.051475,97091.0,97071.0,0.051485]
[1733844961811,0.54438078,97092.0,97071.0,0.051605]
[1733844962000,0.00015564,97072.0,97071.0,0.051605]
[1733844962314,0.05163964,97072.0,97071.0,0.00012]
[1733844962815,0.00815564,97072.0,97071.0,0.00112]
[1733844963019,0.00815564,97072.0,97071.0,0.36192]
[1733844963315,0.00809564,97072.0,97071.0,0.36192]
[1733844963707,0.00809564,97072.0,97071.0,0.3719959]
[1733844963921,0.18358078,97092.0,97091.0,0.051474]
[1733844964303,0.18358078,97092.0,97091.0,0.051594]
[1733844964512,0.1,97100.0,97099.0,0.05147]
[1733844964708,0.09483112,97100.0,97099.0,0.41227]
[1733844964903,0.00011754,97104.0,97103.0,0.05158276]
[1733844965116,0.3608,97132.0,97110.0,0.051464]
[1733844965306,0.3608,97132.0,97110.0,0.3608]
[1733844965507,0.18343732,97145.0,97131.0,0.051453]
[1733844965813,0.3608,97155.0,97144.0,0.00012]
[1733844966016,0.3608,97147.0,97144.0,0.00012]
[1733844966217,0.3608,97147.0,97131.0,0.051453]
[1733844966603,0.051447,97143.0,97126.0,0.3608]
[1733844966811,0.3608,97147.0,97126.0,0.3608]
[1733844967215,0.00211646,97137.0,97126.0,0.00977271]
[1733844967514,0.00211646,97137.0,97119.0,0.3608]
[1733844967717,0.00211646,97137.0,97110.0,0.007]
[1733844967718,0.3608,97123.0,97110.0,0.007]
[1733844968023,0.051464,97112.0,97110.0,0.007]
[1733844968212,0.00211646,97111.0,97110.0,0.007]
[1733844968525,0.051482,97076.0,97064.0,0.051489]
[1733844968710,0.3608,97089.0,97069.0,0.00986374]
[1733844968910,6e-05,97072.0,97071.0,0.07399459]
[1733844969421,0.00200169,97072.0,97071.0,0.73479459]
[1733844969619,0.00200169,97072.0,97071.0,0.73492737]
[1733844969817,0.00200169,97072.0,97071.0,0.43492737]
[1733844970122,0.00200169,97072.0,97071.0,0.00167799]
[1733844970619,0.00200169,97072.0,97071.0,0.36247799]
[1733844970819,0.00200169,97072.0,97071.0,0.67147799]
[1733844971012,0.00200169,97072.0,97071.0,0.37147799]
[1733844971215,0.00200169,97072.0,97071.0,0.38047799]
[1733844971612,0.00200169,97072.0,97071.0,0.37147799]
[1733844971807,0.00200169,97072.0,97071.0,0.37547799]
[1733844972213,0.3608,97099.0,97071.0,0.67547799]
[1733844972409,0.3608,97105.0,97102.0,0.051468]
[1733844972612,0.051463,97113.0,97102.0,0.051468]
[1733844972814,0.3608,97115.0,97085.0,0.051477]
[1733844972815,0.3608,97107.0,97085.0,0.051477]
[1733844973014,0.3608,97115.0,97074.0,0.3608]
[1733844973015,0.051479,97083.0,97074.0,0.3608]
[1733844973317,0.3608,97098.0,97074.0,0.3608]
[1733844973318,6e-05,97086.0,97074.0,0.3608]
[1733844973516,6e-05,97086.0,97075.0,0.051483]
[1733844973717,6e-05,97086.0,97073.0,0.3608]
[1733844973912,6e-05,97086.0,97071.0,0.00167799]
[1733844973913,0.051482,97076.0,97071.0,0.00167799]
[1733844974222,6e-05,97072.0,97071.0,0.00013278]
[1733844974422,6e-05,97072.0,97071.0,0.36093278]
[1733844975022,0.3608,97110.0,97071.0,0.67101508]
[1733844975215,0.3608,97127.0,97106.0,0.051466]
[1733844975417,0.3608,97127.0,97109.0,0.3608]
[1733844975623,0.3608,97127.0,97110.0,0.051464]
[1733844975923,0.51246578,97145.0,97118.0,0.3608]
[1733844975924,0.36132001,97145.0,97118.0,0.3608]
[1733844976224,0.3608,97136.0,97118.0,0.3608]
[1733844976434,0.3608,97136.0,97133.0,0.051452]
[1733844976619,0.00011388,97144.0,97128.0,0.3608]
[1733844976818,0.00011388,97144.0,97137.0,0.05145]
[1733844977210,0.00011388,97144.0,97128.0,0.3608]
[1733844977927,0.001,97136.0,97128.0,0.3608]
[1733844978424,0.001,97136.0,97131.0,0.051453]
[1733844978612,0.001,97136.0,97128.0,0.3608]
[1733844978816,0.001,97136.0,97133.0,0.051452]
[1733844979129,0.001,97136.0,97128.0,0.3608]
[1733844979330,0.001,97136.0,97119.0,0.06136675]
[1733844979623,0.001,97136.0,97123.0,0.051457]
[1733844979822,0.052451,97136.0,97119.0,0.00990775]
[1733844980122,6e-05,97120.0,97118.0,0.42126]
[1733844980526,6e-05,97119.0,97118.0,0.41226]
[1733844980712,6e-05,97119.0,97118.0,0.71226]
[1733844980920,6e-05,97119.0,97118.0,0.42212123]
[1733844981227,6e-05,97119.0,97118.0,0.72212123]
[1733844981426,6e-05,97119.0,97118.0,0.42212123]
[1733844981620,6e-05,97119.0,97118.0,0.72212123]
[1733844982217,6e-05,97119.0,97118.0,0.42212123]
[1733844982826,6e-05,97119.0,97118.0,0.3618]
[1733844983125,6e-05,97119.0,97118.0,0.002]
[1733844984224,6e-05,97119.0,97118.0,0.001]
[1733844984439,6e-05,97119.0,97118.0,0.002]
[1733844985224,0.30006,97119.0,97078.0,0.3608]
[1733844985426,0.30006,97119.0,97076.0,0.03847898]
[1733844985427,0.051476,97089.0,97076.0,0.03847898]
[1733844985614,0.36086,97085.0,97076.0,0.051482]
[1733844985816,0.36086,97085.0,97075.0,0.02085025]
[1733844986122,6e-05,97085.0,97075.0,0.02085025]
[1733844986526,6e-05,97085.0,97074.0,0.051483]
[1733844986827,6e-05,97085.0,97084.0,0.00654502]
[1733844987019,0.051538,97085.0,97084.0,0.00654502]
[1733844987214,0.36086,97085.0,97084.0,0.00654502]
[1733844988029,0.36186,97085.0,97084.0,0.01454502]
[1733844988430,0.36186,97085.0,97084.0,0.013]
[1733844988633,0.00106,97085.0,97084.0,0.013]
[1733844989128,0.00106,97085.0,97084.0,0.064478]
[1733844989327,0.00106,97085.0,97084.0,0.013]
[1733844990231,0.00106,97085.0,97084.0,0.064478]
[1733844991027,0.00106,97085.0,97084.0,0.364478]
[1733844991231,0.00010622,97118.0,97116.0,0.051461]
[1733844991723,0.00010622,97118.0,97117.0,0.00012]
[1733844992124,0.00010622,97118.0,97117.0,0.33920924]
[1733844992630,0.00210622,97118.0,97117.0,0.33914322]
[1733844992832,0.00210622,97118.0,97117.0,0.03914322]
[1733844993236,0.00210622,97118.0,97117.0,0.33914322]
[1733844993621,0.12263106,97158.0,97149.0,0.051444]
[1733844993835,0.12263106,97158.0,97143.0,0.3608]
[1733844994030,0.12263106,97158.0,97153.0,0.3608]
[1733844994239,0.12263106,97158.0,97156.0,0.051439]
[1733844994446,0.12263106,97158.0,97157.0,0.00012]
[1733844994732,0.12274731,97158.0,97157.0,0.00012]
[1733844996439,0.12574731,97158.0,97157.0,0.00112]
[1733844996745,0.12674731,97158.0,97157.0,0.00112]
[1733844997131,0.12474731,97158.0,97157.0,0.00012]
[1733844997735,0.00111625,97158.0,97157.0,0.36192]
[1733844998543,0.00111625,97158.0,97157.0,0.37189731]
[1733845000442,0.330924,97186.0,97159.0,0.051438]
[1733845000639,0.330924,97186.0,97167.0,0.3608]
[1733845000640,0.051426,97184.0,97167.0,0.3608]
[1733845000839,0.2795,97186.0,97157.0,0.01097731]
[1733845000840,0.3608,97168.0,97157.0,0.01097731]
[1733845001036,0.051429,97177.0,97157.0,0.01097731]
[1733845001237,0.5831,97181.0,97157.0,0.01097731]
[1733845001238,0.3608,97178.0,97157.0,0.01097731]
[1733845001439,0.051431,97173.0,97157.0,0.01097731]
[1733845001644,0.00010963,97177.0,97163.0,0.3608]
[1733845002041,0.00010963,97177.0,97176.0,0.00012]
[1733845002245,0.05153863,97177.0,97176.0,0.00012]
[1733845002542,0.00010963,97177.0,97176.0,0.00012]
[1733845007449,0.36090963,97177.0,97176.0,0.00012]
[1733845007751,0.66090963,97177.0,97157.0,0.3608]
[1733845007950,0.412235,97166.0,97157.0,0.3608]
[1733845008248,6e-05,97158.0,97157.0,0.3608]
[1733845009462,6e-05,97158.0,97157.0,0.3628]
[1733845009747,6e-05,97158.0,97157.0,0.3688]
[1733845010843,6e-05,97158.0,97157.0,0.3648]
[1733845011039,0.00106,97158.0,97157.0,0.3718]
[1733845011453,0.00106,97158.0,97157.0,0.011]
[1733845012249,0.00106,97158.0,97157.0,0.007]
[1733845012552,0.00106,97158.0,97157.0,0.004]
[1733845012750,6e-05,97158.0,97157.0,0.008]